bitfinex/quotes_SOLUSD_20250609
["timestamp","ask_amount","ask_price","bid_price","bid_amount"]
[1749492226382,4.77243607,156.51,156.49,49.44]
[1749492226582,25.99583963,156.52,156.49,49.44]
[1749492226785,4.77225715,156.51,156.49,49.44]
[1749492227080,25.99583963,156.52,156.49,49.44]
[1749492227283,4.7724575,156.51,156.49,49.44]
[1749492227466,25.99583963,156.52,156.49,49.44]
[1749492227667,4.77204903,156.51,156.49,49.44]
[1749492227856,25.99583963,156.52,156.49,49.44]
[1749492228577,19.60663841,156.54,156.5,38.25628727]
[1749492228791,4.77246277,156.53,156.51,19.60663841]
[1749492228968,19.60663841,156.55,156.51,19.60663841]
[1749492229278,4.77238068,156.54,156.51,19.60663841]
[1749492229481,4.77238068,156.53,156.51,19.60663841]
[1749492229687,25.99455575,156.55,156.51,19.60663841]
[1749492229983,4.77251491,156.54,156.51,19.60663841]
[1749492230188,4.77165255,156.53,156.51,19.60663841]
[1749492230485,51.99419231,156.56,156.52,38.25628727]
[1749492232696,4.77207607,156.55,156.54,10.2]
[1749492233791,4.77207607,156.55,156.54,29.80663841]
[1749492234368,4.77207607,156.55,156.54,48.45628727]
[1749492234593,4.77207607,156.55,156.54,54.84443087]
[1749492234785,4.77207607,156.55,156.54,48.45628727]
[1749492236184,4.77337423,156.57,156.55,18.64964886]
[1749492236387,25.54212664,156.6,156.56,58.82663841]
[1749492236590,4.77302855,156.59,156.56,58.82663841]
[1749492236791,4.77302855,156.58,156.56,58.82663841]
[1749492237090,4.77302855,156.57,156.56,58.82663841]
[1749492237693,4.77302855,156.57,156.56,77.47628727]
[1749492237893,4.77302855,156.57,156.56,83.86361481]
[1749492238071,6.38541518,156.61,156.56,83.86361481]
[1749492238272,4.77368626,156.6,156.57,19.60663841]
[1749492238481,19.60663841,156.58,156.53,6.655]
[1749492238679,24.38032467,156.57,156.54,39.24]
[1749492238888,30.29575259,156.61,156.54,39.24]
[1749492238889,4.77368626,156.56,156.54,39.24]
[1749492242913,4.77226322,156.57,156.54,39.24]
[1749492243073,19.60663841,156.58,156.54,58.84663841]
[1749492243272,4.77052393,156.57,156.54,58.84663841]
[1749492243489,19.60663841,156.58,156.54,58.84663841]
[1749492243682,4.76990923,156.57,156.54,58.84663841]
[1749492243889,4.76990923,156.56,156.54,58.84663841]
[1749492244080,6.38666061,156.58,156.55,19.60663841]
[1749492244278,4.76940809,156.57,156.55,19.60663841]
[1749492244477,4.76940809,156.56,156.55,19.60663841]
[1749492244883,6.38666061,156.58,156.55,19.60663841]
[1749492245093,4.76855014,156.57,156.55,19.60663841]
[1749492245295,6.38666061,156.58,156.54,58.84663841]
[1749492245496,4.76835766,156.57,156.54,58.84663841]
[1749492245674,25.99329902,156.58,156.54,58.84663841]
[1749492245873,11.15534615,156.57,156.54,19.60663841]
[1749492246095,4.76634392,156.56,156.53,19.60663841]
[1749492246321,6.38720005,156.57,156.54,18.64964886]
[1749492246484,4.76621849,156.56,156.54,38.25628727]
[1749492246686,6.38720005,156.57,156.55,49.48]
[1749492246995,4.766045,156.56,156.54,38.25628727]
[1749492247203,6.38720005,156.57,156.55,49.48]
[1749492247381,4.76582686,156.56,156.55,49.54]
[1749492247576,4.76582686,156.56,156.55,10.2]
[1749492247773,11.1531544,156.56,156.55,10.2]
[1749492248193,30.75979281,156.56,156.55,10.2]
[1749492248400,11.1531544,156.56,156.55,10.2]
[1749492248800,4.76582686,156.56,156.55,10.2]
[1749492249577,11.1531544,156.56,156.55,10.2]
[1749492250120,4.76582686,156.56,156.55,10.2]
[1749492251205,4.76745273,156.56,156.55,10.2]
[1749492251788,6.38640447,156.59,156.55,29.80663841]
[1749492251990,6.38640447,156.59,156.56,19.60663841]
[1749492251991,4.76874772,156.58,156.56,19.60663841]
[1749492252192,4.76882375,156.57,156.56,19.60663841]
[1749492252495,4.76860793,156.58,156.56,19.60663841]
[1749492252692,25.9919267,156.61,156.57,39.36]
[1749492252902,4.76829213,156.6,156.57,39.36]
[1749492253104,4.76829213,156.59,156.57,58.96663841]
[1749492253305,4.76829213,156.58,156.57,58.96663841]
[1749492254100,4.76829213,156.58,156.54,10.2]
[1749492254101,30.76144222,156.58,156.54,10.2]
[1749492254312,19.60663841,156.57,156.54,49.56]
[1749492254528,19.60663841,156.56,156.54,10.2]
[1749492254703,22.35279089,156.58,156.54,10.2]
[1749492255017,19.60663841,156.55,156.5,10.2]
[1749492255206,19.60663841,156.52,156.5,10.2]
[1749492255508,19.60663841,156.51,156.5,10.2]
[1749492255911,19.60663841,156.52,156.5,10.2]
[1749492256099,25.99599997,156.52,156.5,10.2]
[1749492256513,4.76617326,156.51,156.5,10.2]
[1749492257013,22.35740744,156.55,156.5,10.2]
[1749492257195,19.60663841,156.52,156.5,10.2]
[1749492257400,19.60663841,156.53,156.5,10.2]
[1749492259407,4.76825317,156.52,156.5,10.2]
[1749492259600,4.76838948,156.51,156.5,10.2]
[1749492259804,25.99553939,156.53,156.5,10.2]
[1749492260006,4.76854308,156.52,156.5,10.2]
[1749492260206,25.99553939,156.53,156.5,10.2]
[1749492260400,6.38890098,156.53,156.5,10.2]
[1749492261016,4.76909432,156.52,156.5,10.2]
[1749492261215,6.38890098,156.53,156.5,10.2]
[1749492261389,4.76941343,156.52,156.5,10.2]
[1749492261594,6.38890098,156.53,156.5,10.2]
[1749492263010,25.99553939,156.53,156.5,10.2]
[1749492263821,19.60663841,156.52,156.5,10.2]
[1749492264000,4.77352735,156.51,156.5,10.2]
[1749492264397,19.60663841,156.52,156.5,10.2]
[1749492264596,4.77418942,156.51,156.5,10.2]
[1749492265516,11.16355751,156.51,156.5,10.2]
[1749492266403,6.38936809,156.51,156.5,10.2]
[1749492266602,11.16218266,156.51,156.5,10.2]
[1749492266822,6.3881436,156.54,156.5,10.2]
[1749492267022,6.38789245,156.55,156.52,19.60663841]
[1749492267223,19.60663841,156.56,156.52,58.96663841]
[1749492267412,4.77212426,156.55,156.52,58.96663841]
[1749492267616,19.60663841,156.56,156.52,58.96663841]
[1749492267813,24.37903342,156.55,156.52,39.36]
[1749492268012,19.60663841,156.55,156.52,39.36]
[1749492268215,6.38797681,156.55,156.52,39.36]
[1749492268618,25.99412423,156.56,156.52,58.96663841]
[1749492269968,4.77188024,156.55,156.52,58.96663841]
[1749492270107,25.99412423,156.56,156.52,58.96663841]
[1749492270308,4.77180312,156.55,156.52,58.96663841]
[1749492270527,25.99407106,156.56,156.52,58.96663841]
[1749492270730,4.7723857,156.55,156.52,58.96663841]
[1749492270937,25.99407106,156.56,156.52,58.96663841]
[1749492271130,4.77233764,156.55,156.52,58.96663841]
[1749492271338,25.99407106,156.56,156.52,58.96663841]
[1749492271526,11.1607233,156.55,156.52,58.96663841]
[1749492271831,6.38774759,156.55,156.52,58.96663841]
[1749492272007,6.38774759,156.55,156.52,39.36]
[1749492272207,25.994386,156.55,156.52,39.36]
[1749492272407,4.77348827,156.54,156.52,39.36]
[1749492272614,4.77396527,156.53,156.52,39.36]
[1749492274824,4.77451758,156.53,156.52,39.36]
[1749492275134,25.994386,156.55,156.52,39.36]
[1749492275435,4.77426595,156.54,156.52,39.36]
[1749492275636,25.994386,156.55,156.52,39.36]
[1749492275812,4.77447738,156.54,156.52,39.36]
[1749492276015,25.994386,156.55,156.52,39.36]
[1749492276213,4.7744687,156.54,156.52,39.36]
[1749492276414,25.994386,156.55,156.52,39.36]
[1749492276628,4.77443986,156.54,156.52,39.36]
[1749492276833,25.994386,156.55,156.52,39.36]
[1749492277034,4.77443986,156.54,156.52,39.36]
[1749492277235,25.994386,156.55,156.52,39.36]
[1749492277423,4.77426338,156.54,156.52,39.36]
[1749492277630,25.994386,156.55,156.52,39.36]
[1749492277821,4.77445637,156.54,156.52,39.36]
[1749492278022,25.994386,156.55,156.52,39.36]
[1749492278223,11.16290121,156.54,156.52,39.36]
[1749492278435,6.38844484,156.54,156.52,39.36]
[1749492280141,25.99445001,156.55,156.52,39.36]
[1749492280432,4.77432493,156.54,156.52,58.96663841]
[1749492280635,5.9648503,156.59,156.53,38.25628727]
[1749492280826,4.77386293,156.58,156.56,19.60663841]
[1749492281026,6.38628441,156.59,156.55,69.20663841]
[1749492281027,4.77386293,156.57,156.55,69.20663841]
[1749492281220,6.38628441,156.59,156.55,69.20663841]
[1749492281417,4.77336682,156.58,156.55,49.6]
[1749492281624,4.77336682,156.57,156.55,69.20663841]
[1749492281821,6.38628441,156.59,156.55,69.20663841]
[1749492282023,4.77321494,156.58,156.55,69.20663841]
[1749492282229,4.77321494,156.57,156.55,69.20663841]
[1749492282427,6.38628441,156.59,156.55,69.20663841]
[1749492282622,4.773078,156.58,156.55,69.20663841]
[1749492282834,4.773078,156.57,156.55,69.20663841]
[1749492283035,25.99292282,156.59,156.55,49.6]
[1749492283231,24.38005696,156.58,156.55,49.6]
[1749492283439,24.38005696,156.57,156.55,49.6]
[1749492283630,6.38732754,156.56,156.55,49.6]
[1749492285146,6.38569604,156.6,156.55,69.20663841]
[1749492285348,6.38569604,156.6,156.57,19.60663841]
[1749492285728,6.38569604,156.6,156.56,19.60663841]
[1749492286147,6.38569604,156.6,156.57,19.60663841]
[1749492286634,25.99233445,156.6,156.56,19.60663841]
[1749492286836,4.77323048,156.59,156.56,19.60663841]
[1749492287042,4.77323048,156.58,156.56,19.60663841]
[1749492287227,19.60663841,156.59,156.55,69.20663841]
[1749492287429,4.77349605,156.58,156.55,49.6]
[1749492287630,6.38686474,156.58,156.55,39.32]
[1749492288144,6.38686474,156.58,156.55,58.92663841]
[1749492288842,6.38686474,156.58,156.55,39.32]
[1749492289041,4.7729884,156.57,156.55,58.92663841]
[1749492289336,6.38686474,156.58,156.55,58.92663841]
[1749492290043,4.77256165,156.57,156.55,39.32]
[1749492290240,25.99350315,156.58,156.55,39.32]
[1749492290428,4.77264034,156.57,156.55,39.32]
[1749492290746,25.99350315,156.58,156.55,39.32]
[1749492290942,4.77242608,156.57,156.55,39.32]
[1749492291141,25.99350315,156.58,156.55,39.32]
[1749492291325,4.77263937,156.57,156.55,39.32]
[1749492291525,4.77263937,156.56,156.55,39.32]
[1749492292044,11.15996691,156.56,156.55,39.32]
[1749492292468,11.15996691,156.56,156.54,49.56]
[1749492292621,6.38732754,156.56,156.54,49.56]
[1749492293240,6.38707781,156.57,156.54,69.16663841]
[1749492293450,4.77229448,156.56,156.54,49.56]
[1749492293653,6.38707781,156.57,156.54,49.56]
[1749492293827,4.77235232,156.56,156.54,49.56]
[1749492294026,6.38707781,156.57,156.54,49.56]
[1749492294228,11.15970185,156.56,156.54,49.56]
[1749492294436,6.38736881,156.56,156.54,49.56]
[1749492296230,6.38736881,156.56,156.54,10.28]
[1749492298254,6.38691958,156.57,156.54,10.28]
[1749492298439,4.77256487,156.56,156.54,10.28]
[1749492298639,6.38691958,156.57,156.54,10.28]
[1749492298842,4.7730273,156.56,156.54,10.28]
[1749492299041,6.38691958,156.57,156.54,10.28]
[1749492299241,4.7730273,156.56,156.54,10.28]
[1749492299543,6.38691958,156.57,156.54,10.28]
[1749492299743,11.16074092,156.56,156.54,10.28]
[1749492299946,6.38757976,156.56,156.54,10.28]
[1749492300352,4.77326845,156.55,156.54,10.28]
[1749492300553,6.38757976,156.56,156.54,10.28]
[1749492302337,4.77364482,156.55,156.54,10.28]
[1749492302746,24.38028323,156.55,156.54,10.28]
[1749492302942,24.38028323,156.55,156.5,10.22]
[1749492303156,19.60663841,156.51,156.5,10.22]
[1749492303372,24.38028323,156.51,156.46,47.02]
[1749492303541,19.60663841,156.48,156.46,47.02]
[1749492303862,19.60663841,156.48,156.46,10.22]
[1749492304063,25.99757694,156.48,156.46,10.22]
[1749492304440,19.60663841,156.47,156.46,10.22]
[1749492305688,24.37978136,156.47,156.42,10.22]
[1749492305987,19.60663841,156.43,156.42,10.22]
[1749492306260,25.99927409,156.43,156.4,39.3]
[1749492306472,19.60663841,156.42,156.4,39.3]
[1749492306950,6.39263568,156.43,156.4,39.3]
[1749492307153,19.60663841,156.42,156.39,18.64964886]
[1749492308167,25.99984677,156.42,156.39,18.64964886]
[1749492308569,25.99984677,156.42,156.39,57.94964886]
[1749492308881,19.60663841,156.41,156.38,49.52]
[1749492309368,19.60663841,156.4,156.38,10.22]
[1749492310164,26.0002324,156.41,156.38,10.22]
[1749492311349,19.60663841,156.41,156.38,10.22]
[1749492311541,26.00015044,156.41,156.38,10.22]
[1749492312358,19.60663841,156.39,156.36,36.8]
[1749492312579,19.60663841,156.38,156.35,18.64964886]
[1749492312976,19.60663841,156.37,156.34,10.22]
[1749492313172,19.60663841,156.36,156.34,10.22]
[1749492313755,19.60663841,156.37,156.34,10.22]
[1749492314062,6.39549756,156.36,156.34,10.22]
[1749492314258,19.60663841,156.35,156.34,10.22]
[1749492314871,19.60663841,156.35,156.31,18.64964886]
[1749492315055,19.60663841,156.35,156.31,39.3]
[1749492315552,26.00278457,156.35,156.31,39.3]
[1749492315947,19.60663841,156.34,156.3,35.87943841]
[1749492316152,19.60663841,156.34,156.3,75.17943841]
[1749492316348,19.60663841,156.34,156.3,49.54]
[1749492316555,19.60663841,156.34,156.3,69.14663841]
[1749492316761,19.60663841,156.34,156.3,49.54]
[1749492316955,19.60663841,156.33,156.3,10.24]
[1749492317166,19.60663841,156.33,156.3,49.54]
[1749492317573,26.00367635,156.33,156.3,49.54]
[1749492318673,19.60663841,156.32,156.3,10.24]
[1749492319067,19.60663841,156.31,156.3,10.24]
[1749492319279,19.60663841,156.31,156.27,39.3]
[1749492319467,19.60663841,156.3,156.26,86.36]
[1749492319856,19.60663841,156.3,156.26,105.96663841]
[1749492321563,19.60663841,156.29,156.26,47.06]
[1749492321769,26.00464343,156.3,156.26,47.06]
[1749492322662,26.00464343,156.3,156.26,66.66663841]
[1749492325390,19.60663841,156.3,156.26,66.66663841]
[1749492325597,26.00475399,156.3,156.26,36.82]
[1749492325770,6.39811558,156.3,156.26,36.82]
[1749492325971,19.60663841,156.29,156.26,36.82]
[1749492326382,19.60663841,156.27,156.25,10.24]
[1749492326578,22.39299721,156.3,156.25,10.24]
[1749492326782,6.39728673,156.32,156.27,19.60663841]
[1749492326990,6.39728673,156.32,156.28,19.60663841]
[1749492327169,26.00392514,156.32,156.27,39.5]
[1749492327363,26.00392514,156.32,156.28,19.60663841]
[1749492327586,26.00392514,156.32,156.27,59.10663841]
[1749492328282,1.58,156.37,156.28,18.64964886]
[1749492328477,19.60663841,156.35,156.3,19.60663841]
[1749492328677,19.60663841,156.34,156.3,29.84663841]
[1749492328899,19.60663841,156.34,156.3,10.24]
[1749492329093,19.60663841,156.33,156.3,10.24]
[1749492329392,19.60663841,156.34,156.3,29.84663841]
[1749492330085,19.60663841,156.34,156.3,10.24]
[1749492330471,6.39672487,156.33,156.3,10.24]
[1749492330698,26.00304818,156.34,156.3,29.84663841]
[1749492330995,6.39640977,156.34,156.3,29.84663841]
[1749492331870,19.60663841,156.34,156.3,29.84663841]
[1749492332399,26.00254502,156.35,156.31,19.60663841]
[1749492333484,19.60663841,156.34,156.3,29.84663841]
[1749492333804,26.00418029,156.32,156.3,10.24]
[1749492335120,26.00418029,156.32,156.27,39.48]
[1749492335121,19.60663841,156.31,156.27,39.48]
[1749492335305,19.60663841,156.31,156.26,29.94663841]
[1749492336235,6.39795265,156.3,156.26,29.94663841]
[1749492337955,6.39795265,156.3,156.26,10.34]
[1749492338261,6.39795265,156.3,156.26,29.94663841]
[1749492338418,6.39754159,156.32,156.28,19.60663841]
[1749492338626,6.39590661,156.35,156.31,19.60663841]
[1749492338826,6.39563199,156.36,156.32,19.60663841]
[1749492339137,19.60663841,156.35,156.31,29.94663841]
[1749492339924,26.00260626,156.35,156.31,29.94663841]
[1749492340129,26.00230699,156.36,156.32,19.60663841]
[1749492341336,26.00230699,156.36,156.31,10.34]
[1749492341539,26.00230699,156.36,156.32,19.60663841]
[1749492342335,26.00230699,156.36,156.31,29.94663841]
[1749492343135,6.39508857,156.37,156.31,29.94663841]
[1749492343351,19.60663841,156.36,156.31,29.94663841]
[1749492344155,6.39590661,156.35,156.31,29.94663841]
[1749492346561,6.39590661,156.35,156.31,10.34]
[1749492346860,6.39590661,156.35,156.31,29.94663841]
[1749492347262,26.00254502,156.35,156.31,29.94663841]
[1749492347859,6.39590661,156.35,156.32,19.60663841]
[1749492348446,11.13965446,156.35,156.32,19.60663841]
[1749492348855,11.13965446,156.35,156.31,10.34]
[1749492349052,11.13673043,156.35,156.32,19.60663841]
[1749492349254,6.39590661,156.35,156.32,19.60663841]
[1749492349942,6.39485254,156.38,156.33,19.60663841]
[1749492350152,4.74479575,156.37,156.35,19.60663841]
[1749492350358,4.74479575,156.36,156.35,19.60663841]
[1749492350765,6.3941898,156.4,156.35,19.60663841]
[1749492350956,4.74946224,156.39,156.36,19.60663841]
[1749492351139,4.74946224,156.38,156.37,19.60663841]
[1749492352463,4.75421336,156.41,156.38,18.64964886]
[1749492352679,6.39249857,156.44,156.4,19.60663841]
[1749492352970,4.75436768,156.43,156.4,19.60663841]
[1749492353271,6.39186373,156.45,156.42,19.60663841]
[1749492353477,4.75657838,156.44,156.42,19.60663841]
[1749492353776,4.75657838,156.43,156.41,49.86]
[1749492353972,6.39143091,156.46,156.41,49.86]
[1749492354141,4.75654245,156.45,156.41,49.86]
[1749492354472,4.75654245,156.44,156.41,49.86]
[1749492354774,4.75654245,156.43,156.41,49.86]
[1749492355075,6.39143091,156.46,156.42,19.60663841]
[1749492355270,4.75781763,156.45,156.42,19.60663841]
[1749492355449,25.48835791,156.47,156.41,49.86]
[1749492355450,4.75781763,156.44,156.43,19.60663841]
[1749492355773,4.75781763,156.44,156.43,38.25628727]
[1749492355973,4.75781763,156.47,156.44,18.64964886]
[1749492356169,6.39035482,156.49,156.46,19.60663841]
[1749492356347,4.75648214,156.48,156.46,19.60663841]
[1749492356548,4.75648214,156.47,156.45,39.56]
[1749492356747,4.75648214,156.46,156.45,59.16663841]
[1749492357288,4.75648214,156.48,156.45,65.55845688]
[1749492357582,4.75648214,156.47,156.46,19.60663841]
[1749492357759,4.75648214,156.48,156.46,19.60663841]
[1749492357965,4.75648214,156.47,156.46,19.60663841]
[1749492358167,4.75452027,156.47,156.46,19.60663841]
[1749492358365,6.39070018,156.48,156.46,19.60663841]
[1749492358770,11.14522045,156.48,156.46,19.60663841]
[1749492358961,6.39018467,156.49,156.46,19.60663841]
[1749492359161,11.14470494,156.49,156.46,19.60663841]
[1749492359971,30.75134335,156.49,156.42,6.4387]
[1749492360190,24.36115868,156.48,156.43,69.48663841]
[1749492360863,4.75452027,156.48,156.44,19.60663841]
[1749492361064,25.99682308,156.49,156.45,19.60663841]
[1749492361260,6.38984709,156.5,156.46,19.60663841]
[1749492361475,24.36115868,156.51,156.49,19.60663841]
[1749492361476,4.75452027,156.51,156.49,19.60663841]
[1749492361681,4.74259399,156.56,156.5,29.98663841]
[1749492361863,6.38662031,156.58,156.55,19.60663841]
[1749492362069,6.38528829,156.61,156.57,19.60663841]
[1749492362273,6.38528829,156.61,156.58,19.60663841]
[1749492363295,35.74979895,156.62,156.58,29.36482472]
[1749492363678,6.38497423,156.62,156.58,29.36482472]
[1749492363879,35.74979895,156.62,156.58,29.36482472]
[1749492364377,35.74979895,156.62,156.57,68.96482472]
[1749492365381,29.36482472,156.61,156.57,68.96482472]
[1749492366323,29.36482472,156.58,156.56,10.38]
[1749492366489,29.36482472,156.6,156.56,10.38]
[1749492366687,29.36482472,156.61,156.57,29.36482472]
[1749492367081,35.74979895,156.62,156.57,29.36482472]
[1749492367480,29.36482472,156.61,156.57,29.36482472]
[1749492367703,29.36482472,156.61,156.56,39.74482472]
[1749492368227,22.34717573,156.62,156.57,29.36482472]
[1749492368430,29.36482472,156.61,156.57,29.36482472]
[1749492369529,8.33333333,156.59,156.57,29.36482472]
[1749492370238,8.33333333,156.59,156.58,29.36482472]
[1749492370406,8.33333333,156.59,156.58,48.01447358]
[1749492376128,8.33333333,156.59,156.58,56.11814683]
[1749492377711,8.33333333,156.59,156.58,55.97598526]
[1749492377912,8.33333333,156.59,156.58,48.01447358]
[1749492378718,8.33333333,156.59,156.57,129.5]
[1749492379247,29.36482472,156.58,156.53,18.64964886]
[1749492379436,14.71954069,156.59,156.54,10.36]
[1749492379437,29.36482472,156.56,156.54,10.36]
[1749492379747,29.36482472,156.57,156.54,10.36]
[1749492379954,14.71954069,156.59,156.54,39.72482472]
[1749492380452,8.33333333,156.59,156.58,29.36482472]
[1749492380743,8.33333333,156.59,156.58,39.58]
[1749492380744,14.71943716,156.59,156.58,39.58]
[1749492382252,44.08426188,156.59,156.55,39.58]
[1749492382420,29.36482472,156.58,156.55,39.58]
[1749492382738,6.38732754,156.56,156.55,39.58]
[1749492382936,6.38732754,156.56,156.54,49.94]
[1749492383129,6.38732754,156.56,156.54,10.36]
[1749492383330,35.75215226,156.56,156.54,10.36]
[1749492383535,29.36482472,156.55,156.5,10.36]
[1749492383735,29.36482472,156.53,156.51,39.58]
[1749492384117,29.36482472,156.53,156.5,49.94]
[1749492384447,29.36482472,156.54,156.5,79.30482472]
[1749492384648,29.36482472,156.53,156.5,49.94]
[1749492384950,6.38895987,156.52,156.5,49.94]
[1749492385320,25.98741312,156.53,156.5,49.94]
[1749492385737,6.38870993,156.53,156.5,49.94]
[1749492385930,25.98741312,156.53,156.5,49.94]
[1749492387221,35.78651602,156.53,156.5,49.94]
[1749492387417,29.39780609,156.52,156.48,10.36]
[1749492387632,29.39780609,156.52,156.49,39.6]
[1749492387839,35.78651602,156.53,156.49,68.99780609]
[1749492388528,6.38732754,156.56,156.5,29.39780609]
[1749492388727,29.39780609,156.54,156.5,29.39780609]
[1749492389032,35.78676596,156.52,156.49,39.6]
[1749492390944,29.39780609,156.51,156.49,39.6]
[1749492391641,35.78676596,156.52,156.49,39.6]
[1749492392459,29.39780609,156.51,156.49,39.6]
[1749492392825,35.78752635,156.51,156.49,39.6]
[1749492393025,35.78752635,156.51,156.48,10.36]
[1749492393225,6.38972026,156.51,156.48,39.75780609]
[1749492393937,35.78752635,156.51,156.48,10.36]
[1749492394450,29.39780609,156.49,156.48,10.36]
[1749492394829,35.78799076,156.49,156.48,10.36]
[1749492397329,35.78799076,156.49,156.45,39.54]
[1749492397531,29.39780609,156.48,156.45,39.54]
[1749492399159,6.39100146,156.47,156.45,39.54]
[1749492400357,4.748675,156.49,156.45,68.93780609]
[1749492400530,6.38977635,156.5,156.45,45.93179589]
[1749492400731,6.38977635,156.5,156.47,29.39780609]
[1749492400958,11.13759535,156.51,156.48,68.93780609]
[1749492401255,40.5368254,156.51,156.48,39.54]
[1749492401467,35.78733829,156.51,156.48,39.54]
[1749492401627,29.39780609,156.49,156.48,39.54]
[1749492401827,34.14790173,156.49,156.48,39.54]
[1749492402253,34.14790173,156.49,156.45,39.56]
[1749492402437,35.78839913,156.48,156.44,10.4]
[1749492402759,35.78839913,156.48,156.45,39.56]
[1749492402951,6.39059304,156.48,156.45,39.56]
[1749492403358,35.78839913,156.48,156.45,39.56]
[1749492403738,6.39059304,156.48,156.45,39.56]
[1749492404942,35.78798768,156.5,156.46,29.39780609]
[1749492405144,6.39018159,156.5,156.47,29.39780609]
[1749492405349,6.39018159,156.5,156.42,6.39304436]
[1749492405551,6.39018159,156.5,156.46,29.39780609]
[1749492405750,6.39018159,156.5,156.47,39.58]
[1749492405957,35.78731007,156.51,156.47,68.97780609]
[1749492406742,6.38950398,156.51,156.47,68.97780609]
[1749492407143,35.78731007,156.51,156.47,39.58]
[1749492407363,30.74755223,156.51,156.47,39.58]
[1749492407671,19.60544112,156.5,156.47,39.58]
[1749492408265,19.60544112,156.49,156.47,39.58]
[1749492408762,6.39059304,156.48,156.47,39.58]
[1749492409767,20.72602735,156.51,156.47,39.58]
[1749492409768,19.60544112,156.5,156.47,39.58]
[1749492409947,25.99480921,156.51,156.47,39.58]
[1749492410140,25.99480921,156.51,156.47,69.58544112]
[1749492410868,19.60544112,156.5,156.47,49.98]
[1749492412075,25.99480921,156.51,156.47,49.98]
[1749492412970,6.39018467,156.49,156.47,49.98]
[1749492413749,25.99562579,156.49,156.47,49.98]
[1749492415766,25.99562579,156.49,156.47,10.4]
[1749492418270,19.60544112,156.48,156.47,10.4]
[1749492418863,25.99562579,156.49,156.47,10.4]
[1749492422278,30.75094846,156.49,156.47,10.4]
[1749492422779,25.99562579,156.49,156.47,10.4]
[1749492423274,30.76671093,156.49,156.47,10.4]
[1749492423478,25.99562579,156.49,156.47,10.4]
[1749492424698,25.99562579,156.49,156.45,69.50544112]
[1749492424857,19.60544112,156.49,156.45,69.50544112]
[1749492425052,4.77415515,156.5,156.46,19.60544112]
[1749492425356,25.99480921,156.51,156.46,19.60544112]
[1749492425556,4.77654217,156.5,156.46,19.60544112]
[1749492425752,4.77654217,156.49,156.46,19.60544112]
[1749492425975,19.60544112,156.5,156.46,19.60544112]
[1749492426277,4.77651325,156.49,156.46,19.60544112]
[1749492426456,19.60544112,156.5,156.46,19.60544112]
[1749492426657,4.7766989,156.49,156.46,19.60544112]
[1749492426891,6.39018467,156.49,156.46,19.60544112]
[1749492430172,25.99540335,156.5,156.46,19.60544112]
[1749492430363,4.78045441,156.49,156.46,19.60544112]
[1749492430564,25.99540335,156.5,156.46,19.60544112]
[1749492430796,4.78061488,156.49,156.46,19.60544112]
[1749492431086,25.99540335,156.5,156.46,19.60544112]
[1749492431288,4.78152848,156.49,156.46,19.60544112]
[1749492431485,25.99540335,156.5,156.45,69.50544112]
[1749492431681,4.78183667,156.49,156.45,69.50544112]
[1749492431882,25.99540335,156.5,156.45,69.50544112]
[1749492432096,4.78177869,156.49,156.45,69.50544112]
[1749492432398,25.99540335,156.5,156.45,69.50544112]
[1749492432603,4.78295673,156.49,156.45,69.50544112]
[1749492432805,6.38996223,156.5,156.47,19.60544112]
[1749492433161,4.78343282,156.49,156.47,19.60544112]
[1749492433400,6.38996223,156.5,156.47,19.60544112]
[1749492433604,4.78348337,156.49,156.47,19.60544112]
[1749492433782,6.38996223,156.5,156.47,19.60544112]
[1749492433969,4.7835124,156.49,156.47,19.60544112]
[1749492434170,6.38996223,156.5,156.45,49.9]
[1749492434171,25.99540335,156.5,156.45,49.9]
[1749492434371,4.78393526,156.49,156.45,69.50544112]
[1749492434571,25.99540335,156.5,156.45,69.50544112]
[1749492434788,4.7843011,156.49,156.45,69.50544112]
[1749492434991,25.99540335,156.5,156.45,69.50544112]
[1749492435189,4.78435558,156.49,156.45,69.50544112]
[1749492435394,6.38996223,156.5,156.46,19.60544112]
[1749492435586,4.78504109,156.49,156.46,19.60544112]
[1749492435786,6.38996223,156.5,156.46,19.60544112]
[1749492435987,4.78519263,156.49,156.46,19.60544112]
[1749492436188,6.38996223,156.5,156.46,19.60544112]
[1749492436388,4.78530549,156.49,156.46,19.60544112]